[Event "*** Titled Tuesday Blitz"]
[Site "Chess.com"]
[Date "2018.12.04"]
[Round "2"]
[White "robbykevlishvili"]
[Black "Tjktiger"]
[Result "1/2-1/2"]
[WhiteElo "2731"]
[BlackElo "2662"]
[TimeControl "180+2"]
[EndTime "13:25:19 PST"]
[Termination "Game drawn - insufficient material"]

1. e4 {[%clk 0:03:01.9]} 1... c5 {[%clk 0:02:51.8]} 2. Nf3 {[%clk 0:03:02.1]}
2... g6 {[%clk 0:02:53.1]} 3. d4 {[%clk 0:03:03.5]} 3... cxd4 {[%clk 0:02:54.4]}
4. Nxd4 {[%clk 0:03:05.4]} 4... Bg7 {[%clk 0:02:55.6]} 5. c4 {[%clk 0:03:06.6]}
5... Nc6 {[%clk 0:02:56.9]} 6. Be3 {[%clk 0:03:07.8]} 6... Qb6 {[%clk
0:02:57.3]} 7. Nb3 {[%clk 0:02:55.5]} 7... Qd8 {[%clk 0:02:56.8]} 8. Nc3 {[%clk
0:02:56.5]} 8... Bxc3+ {[%clk 0:02:57.7]} 9. bxc3 {[%clk 0:02:58.4]} 9... Nf6
{[%clk 0:02:59.1]} 10. f3 {[%clk 0:02:59.4]} 10... d6 {[%clk 0:03:00.6]} 11. Be2
{[%clk 0:03:00.2]} 11... O-O {[%clk 0:03:00.5]} 12. O-O {[%clk 0:03:00.9]} 12...
b6 {[%clk 0:03:01.6]} 13. Qd2 {[%clk 0:03:00.4]} 13... Qc7 {[%clk 0:02:59.6]}
14. Nd4 {[%clk 0:02:56]} 14... Na5 {[%clk 0:03:00.5]} 15. Bh6 {[%clk 0:02:56.4]}
15... Rd8 {[%clk 0:02:57.1]} 16. Nb5 {[%clk 0:02:47.9]} 16... Qc5+ {[%clk
0:02:51.7]} 17. Qd4 {[%clk 0:02:17.9]} 17... Be6 {[%clk 0:02:06.9]} 18. Qxc5
{[%clk 0:02:17.1]} 18... bxc5 {[%clk 0:02:03.6]} 19. Nc7 {[%clk 0:02:17.9]}
19... Rab8 {[%clk 0:02:04.3]} 20. Nd5 {[%clk 0:02:06.3]} 20... Bxd5 {[%clk
0:01:51.8]} 21. cxd5 {[%clk 0:02:08.2]} 21... Rb2 {[%clk 0:01:52.7]} 22. Bd3
{[%clk 0:02:05.9]} 22... c4 {[%clk 0:01:43]} 23. Rfb1 {[%clk 0:02:04.3]} 23...
Rdb8 {[%clk 0:01:29.9]} 24. Rxb2 {[%clk 0:02:04.6]} 24... Rxb2 {[%clk
0:01:31.8]} 25. Rb1 {[%clk 0:02:03.7]} 25... Rxb1+ {[%clk 0:01:11.5]} 26. Bxb1
{[%clk 0:02:05.6]} 26... e6 {[%clk 0:01:13]} 27. dxe6 {[%clk 0:02:02.6]} 27...
fxe6 {[%clk 0:01:14.9]} 28. Kf2 {[%clk 0:01:58.8]} 28... e5 {[%clk 0:00:55.5]}
29. Be3 {[%clk 0:01:58.5]} 29... a6 {[%clk 0:00:52.7]} 30. Bc2 {[%clk
0:01:58.4]} 30... Kf7 {[%clk 0:00:49.8]} 31. Ba4 {[%clk 0:01:56.4]} 31... Ke7
{[%clk 0:00:42.4]} 32. Bb6 {[%clk 0:01:56.7]} 32... Nb7 {[%clk 0:00:43.5]} 33.
Ke3 {[%clk 0:01:51.7]} 33... Nd7 {[%clk 0:00:40.6]} 34. Ba7 {[%clk 0:01:46.9]}
34... Nbc5 {[%clk 0:00:25.1]} 35. Bc6 {[%clk 0:01:43.7]} 35... Nd3 {[%clk
0:00:25.3]} 36. Bd5 {[%clk 0:01:41.3]} 36... Nf4 {[%clk 0:00:09.4]} 37. Bxc4
{[%clk 0:01:38.6]} 37... Nxg2+ {[%clk 0:00:10.7]} 38. Kf2 {[%clk 0:01:39.5]}
38... Nf4 {[%clk 0:00:12.1]} 39. Bxa6 {[%clk 0:01:40]} 39... Nc5 {[%clk
0:00:13.4]} 40. Bb5 {[%clk 0:01:27]} 40... Kd8 {[%clk 0:00:12.7]} 41. Bb6+
{[%clk 0:01:27.9]} 41... Kc8 {[%clk 0:00:14]} 42. a4 {[%clk 0:01:25.8]} 42... h5
{[%clk 0:00:09.4]} 43. a5 {[%clk 0:01:20.2]} 43... Kb7 {[%clk 0:00:10.7]} 44.
Bd8 {[%clk 0:01:19.2]} 44... d5 {[%clk 0:00:10.9]} 45. Be7 {[%clk 0:01:16.5]}
45... Nb3 {[%clk 0:00:09.5]} 46. exd5 {[%clk 0:01:14.9]} 46... Nxd5 {[%clk
0:00:09.3]} 47. Bb4 {[%clk 0:01:12.4]} 47... Nxb4 {[%clk 0:00:06.9]} 48. cxb4
{[%clk 0:01:14.3]} 48... Nd4 {[%clk 0:00:08.5]} 49. Bd3 {[%clk 0:01:11.3]} 49...
g5 {[%clk 0:00:08.7]} 50. b5 {[%clk 0:01:11.3]} 50... Nb3 {[%clk 0:00:08.6]} 51.
Be4+ {[%clk 0:01:11.2]} 51... Ka7 {[%clk 0:00:10.1]} 52. b6+ {[%clk 0:01:07.9]}
52... Ka6 {[%clk 0:00:11]} 53. b7 {[%clk 0:01:05.4]} 53... Ka7 {[%clk
0:00:11.9]} 54. Bd5 {[%clk 0:01:02.2]} 54... Nxa5 {[%clk 0:00:11.9]} 55. Ke3
{[%clk 0:01:03.2]} 55... Nxb7 {[%clk 0:00:09.5]} 56. Bxb7 {[%clk 0:01:03]} 56...
Kxb7 {[%clk 0:00:11.4]} 57. h3 {[%clk 0:00:54.1]} 57... Kc6 {[%clk 0:00:09.2]}
58. Ke4 {[%clk 0:00:55.1]} 58... Kd6 {[%clk 0:00:06.3]} 59. Kf5 {[%clk
0:00:55.6]} 59... g4 {[%clk 0:00:06.6]} 60. fxg4 {[%clk 0:00:54.7]} 60... hxg4
{[%clk 0:00:07.7]} 61. hxg4 {[%clk 0:00:56.6]} 61... e4 {[%clk 0:00:08.8]} 62.
Kxe4 {[%clk 0:00:57.2]} 62... Ke6 {[%clk 0:00:10.1]} 63. Kf4 {[%clk 0:00:58.5]}
63... Kf6 {[%clk 0:00:11.5]} 64. Kg3 {[%clk 0:01:00]} 64... Kg5 {[%clk
0:00:12.6]} 65. Kh3 {[%clk 0:01:01.6]} 65... Kg6 {[%clk 0:00:14.3]} 66. Kh4
{[%clk 0:01:03.5]} 66... Kh6 {[%clk 0:00:15.6]} 67. Kg3 {[%clk 0:01:05.1]} 67...
Kg5 {[%clk 0:00:16.9]} 68. Kf3 {[%clk 0:01:07]} 68... Kg6 {[%clk 0:00:18.4]} 69.
Kf4 {[%clk 0:01:08.9]} 69... Kf6 {[%clk 0:00:19.9]} 70. g5+ {[%clk 0:01:10.4]}
70... Kg6 {[%clk 0:00:21.5]} 71. Kg4 {[%clk 0:01:12.3]} 71... Kg7 {[%clk
0:00:23.1]} 72. Kf5 {[%clk 0:01:14.2]} 72... Kf7 {[%clk 0:00:24.3]} 73. Kf4
{[%clk 0:01:16.1]} 73... Kg6 {[%clk 0:00:25.6]} 74. Kg4 {[%clk 0:01:17.5]} 74...
Kg7 {[%clk 0:00:27.2]} 75. Kh5 {[%clk 0:01:19.4]} 75... Kh7 {[%clk 0:00:28.6]}
76. Kh4 {[%clk 0:01:20.9]} 76... Kg6 {[%clk 0:00:29.9]} 77. Kg4 {[%clk
0:01:22.5]} 77... Kg7 {[%clk 0:00:31.6]} 78. Kf5 {[%clk 0:01:24]} 78... Kf7
{[%clk 0:00:32.9]} 79. Ke5 {[%clk 0:01:25.5]} 79... Kg6 {[%clk 0:00:34.1]} 80.
Kf4 {[%clk 0:01:26.7]} 80... Kg7 {[%clk 0:00:35.2]} 81. Kf5 {[%clk 0:01:28.1]}
81... Kf7 {[%clk 0:00:36.5]} 82. Kg4 {[%clk 0:01:29.7]} 82... Kg6 {[%clk
0:00:35.4]} 83. Kh4 {[%clk 0:01:30.3]} 83... Kg7 {[%clk 0:00:36.4]} 84. Kh5
{[%clk 0:01:31]} 84... Kh7 {[%clk 0:00:37.6]} 85. g6+ {[%clk 0:01:31.5]} 85...
Kg7 {[%clk 0:00:38.9]} 86. Kg5 {[%clk 0:01:32.4]} 86... Kg8 {[%clk 0:00:40.3]}
87. Kh6 {[%clk 0:01:34.3]} 87... Kh8 {[%clk 0:00:41.4]} 88. Kg5 {[%clk
0:01:34.6]} 88... Kg7 {[%clk 0:00:42.6]} 89. Kf5 {[%clk 0:01:36.5]} 89... Kg8
{[%clk 0:00:43.8]} 90. Kf6 {[%clk 0:01:37.6]} 90... Kf8 {[%clk 0:00:45]} 91. Kg5
{[%clk 0:01:38.4]} 91... Kg7 {[%clk 0:00:46.2]} 92. Kh5 {[%clk 0:01:39.2]} 92...
Kg8 {[%clk 0:00:47.3]} 93. Kh6 {[%clk 0:01:40.8]} 93... Kh8 {[%clk 0:00:48.4]}
94. Kg5 {[%clk 0:01:42.6]} 94... Kg7 {[%clk 0:00:49.6]} 95. Kf5 {[%clk
0:01:43.8]} 95... Kg8 {[%clk 0:00:50.7]} 96. Kg4 {[%clk 0:01:45.2]} 96... Kg7
{[%clk 0:00:51.7]} 97. Kh5 {[%clk 0:01:46.7]} 97... Kg8 {[%clk 0:00:52.6]} 98.
Kh6 {[%clk 0:01:48.3]} 98... Kh8 {[%clk 0:00:53.8]} 99. g7+ {[%clk 0:01:49.6]}
99... Kg8 {[%clk 0:00:55]} 100. Kh5 {[%clk 0:01:51.5]} 100... Kh7 {[%clk
0:00:55.2]} 101. g8=B+ {[%clk 0:01:50.4]} 1/2-1/2

[Event "*** Titled Tuesday Blitz"]
[Site "Chess.com"]
[Date "2018.12.04"]
[Round "2"]
[White "Shahinyan_ChessMood"]
[Black "Durarbayli"]
[Result "1/2-1/2"]
[WhiteElo "2669"]
[BlackElo "2702"]
[TimeControl "180+2"]
[EndTime "13:25:29 PST"]
[Termination "Game drawn by repetition"]

1. c4 {[%clk 0:03:01.9]} 1... c5 {[%clk 0:02:58.7]} 2. Nc3 {[%clk 0:03:02.7]}
2... Nc6 {[%clk 0:02:58.8]} 3. g3 {[%clk 0:03:02.5]} 3... g6 {[%clk 0:02:59.9]}
4. Bg2 {[%clk 0:03:03.2]} 4... Bg7 {[%clk 0:03:01.6]} 5. e4 {[%clk 0:03:04.8]}
5... e6 {[%clk 0:03:00.5]} 6. Nge2 {[%clk 0:03:05.2]} 6... Nge7 {[%clk
0:03:01.2]} 7. O-O {[%clk 0:03:05.9]} 7... O-O {[%clk 0:03:02.4]} 8. d3 {[%clk
0:03:06.6]} 8... b6 {[%clk 0:02:46.9]} 9. Rb1 {[%clk 0:03:07.5]} 9... Bb7 {[%clk
0:02:42.5]} 10. a3 {[%clk 0:03:08.5]} 10... d6 {[%clk 0:02:29]} 11. b4 {[%clk
0:03:07.9]} 11... Qd7 {[%clk 0:02:29.2]} 12. b5 {[%clk 0:03:04.1]} 12... Na5
{[%clk 0:02:11.4]} 13. Bg5 {[%clk 0:02:36.8]} 13... h6 {[%clk 0:02:05.8]} 14.
Bd2 {[%clk 0:02:30.4]} 14... d5 {[%clk 0:02:03.8]} 15. exd5 {[%clk 0:02:14.7]}
15... exd5 {[%clk 0:02:02.9]} 16. Nxd5 {[%clk 0:02:09.9]} 16... Nxd5 {[%clk
0:02:02.2]} 17. cxd5 {[%clk 0:02:07.8]} 17... Bxd5 {[%clk 0:02:00.7]} 18. Bxd5
{[%clk 0:01:59]} 18... Qxd5 {[%clk 0:02:01.4]} 19. Bxa5 {[%clk 0:02:00.9]} 19...
bxa5 {[%clk 0:02:02.1]} 20. Qc2 {[%clk 0:01:52.6]} 20... Rfd8 {[%clk 0:01:41.7]}
21. Rfd1 {[%clk 0:01:50.1]} 21... h5 {[%clk 0:01:28.6]} 22. Qc4 {[%clk
0:01:43.3]} 22... Qf3 {[%clk 0:01:24.6]} 23. Qe4 {[%clk 0:01:44]} 23... Qxe4
{[%clk 0:00:46.8]} 24. dxe4 {[%clk 0:01:45.9]} 24... a4 {[%clk 0:00:48.5]} 25.
Nf4 {[%clk 0:00:53.1]} 25... Rxd1+ {[%clk 0:00:18.6]} 26. Rxd1 {[%clk 0:00:55]}
26... Bb2 {[%clk 0:00:16.4]} 27. Nd5 {[%clk 0:00:56.6]} 27... Rb8 {[%clk
0:00:14.6]} 28. Rd2 {[%clk 0:00:49.2]} 28... Bxa3 {[%clk 0:00:14.2]} 29. Ra2
{[%clk 0:00:50.4]} 29... Bb4 {[%clk 0:00:14]} 30. Rxa4 {[%clk 0:00:51]} 30...
Rxb5 {[%clk 0:00:15.4]} 31. Rxa7 {[%clk 0:00:52.6]} 31... c4 {[%clk 0:00:16]}
32. Rc7 {[%clk 0:00:50.9]} 32... Rc5 {[%clk 0:00:08.4]} 33. Rxc5 {[%clk
0:00:51.4]} 33... Bxc5 {[%clk 0:00:10.3]} 34. Kf1 {[%clk 0:00:53.3]} 34... Kg7
{[%clk 0:00:08.7]} 35. Ke2 {[%clk 0:00:52.4]} 35... Bd4 {[%clk 0:00:09.4]} 36.
f3 {[%clk 0:00:38]} 36... g5 {[%clk 0:00:09]} 37. Ne3 {[%clk 0:00:29.9]} 37...
Kf6 {[%clk 0:00:10.2]} 38. Nxc4 {[%clk 0:00:29.3]} 38... Bg1 {[%clk 0:00:11.1]}
39. h3 {[%clk 0:00:27.6]} 39... Ba7 {[%clk 0:00:10]} 40. Ne3 {[%clk 0:00:19.8]}
40... Bb8 {[%clk 0:00:09.2]} 41. Nf5 {[%clk 0:00:20.2]} 41... Bc7 {[%clk
0:00:07.1]} 42. g4 {[%clk 0:00:20.3]} 42... hxg4 {[%clk 0:00:07.6]} 43. hxg4
{[%clk 0:00:22.2]} 43... Ke5 {[%clk 0:00:08.8]} 44. Ne3 {[%clk 0:00:20.7]} 44...
Bb8 {[%clk 0:00:09.1]} 45. Nd5 {[%clk 0:00:21.8]} 45... f6 {[%clk 0:00:09.6]}
46. Ne3 {[%clk 0:00:21.9]} 46... Ba7 {[%clk 0:00:10.2]} 47. Nc4+ {[%clk
0:00:22.8]} 47... Ke6 {[%clk 0:00:11.1]} 48. Kd3 {[%clk 0:00:23.5]} 48... Bg1
{[%clk 0:00:12.6]} 49. Nd2 {[%clk 0:00:24.6]} 49... Ke5 {[%clk 0:00:13.5]} 50.
Nc4+ {[%clk 0:00:25.9]} 50... Ke6 {[%clk 0:00:14.1]} 51. Ne3 {[%clk 0:00:26.4]}
51... Bf2 {[%clk 0:00:12.5]} 52. Nc4 {[%clk 0:00:27]} 52... Ba7 {[%clk
0:00:13.6]} 53. Kc3 {[%clk 0:00:28.5]} 53... Bc5 {[%clk 0:00:14.7]} 54. Kb3
{[%clk 0:00:30]} 54... Bf8 {[%clk 0:00:14]} 55. Ka4 {[%clk 0:00:30.4]} 55... Bc5
{[%clk 0:00:15.3]} 56. Kb5 {[%clk 0:00:31.8]} 56... Bd4 {[%clk 0:00:15.7]} 57.
Kc6 {[%clk 0:00:32.8]} 57... Bc3 {[%clk 0:00:16.5]} 58. Kc5 {[%clk 0:00:33.6]}
58... Be1 {[%clk 0:00:16]} 59. Nb2 {[%clk 0:00:34.1]} 59... Bf2+ {[%clk
0:00:16]} 60. Kc4 {[%clk 0:00:35.1]} 60... Bb6 {[%clk 0:00:14.9]} 61. Nd3 {[%clk
0:00:36.4]} 61... Be3 {[%clk 0:00:15.9]} 62. Nb4 {[%clk 0:00:25]} 62... Bc1
{[%clk 0:00:12.2]} 63. Kd4 {[%clk 0:00:21.6]} 63... Bb2+ {[%clk 0:00:11]} 64.
Kd3 {[%clk 0:00:23]} 64... Ba3 {[%clk 0:00:12.2]} 65. Nd5 {[%clk 0:00:23.1]}
65... Ke5 {[%clk 0:00:12.2]} 66. Ne3 {[%clk 0:00:21.2]} 66... Bc5 {[%clk
0:00:13.5]} 67. Nc4+ {[%clk 0:00:21.3]} 67... Ke6 {[%clk 0:00:15]} 68. e5 {[%clk
0:00:21.2]} 68... f5 {[%clk 0:00:11.4]} 69. Ne3 {[%clk 0:00:09.3]} 69... Bxe3
{[%clk 0:00:11.1]} 70. Kxe3 {[%clk 0:00:11.2]} 70... fxg4 {[%clk 0:00:09.7]} 71.
fxg4 {[%clk 0:00:10.9]} 71... Kxe5 {[%clk 0:00:10.9]} 72. Kf3 {[%clk 0:00:12.5]}
72... Kd4 {[%clk 0:00:12.3]} 73. Kf2 {[%clk 0:00:13.9]} 73... Kd3 {[%clk
0:00:13]} 74. Kf3 {[%clk 0:00:14.3]} 74... Kd4 {[%clk 0:00:14.4]} 75. Kf2 {[%clk
0:00:15.7]} 75... Ke4 {[%clk 0:00:16.3]} 76. Ke2 {[%clk 0:00:16.6]} 76... Ke5
{[%clk 0:00:17.5]} 77. Ke3 {[%clk 0:00:17]} 77... Kd5 {[%clk 0:00:19]} 78. Kd3
{[%clk 0:00:18.5]} 78... Ke5 {[%clk 0:00:20.7]} 79. Ke3 {[%clk 0:00:19.8]} 79...
Kd5 {[%clk 0:00:22.4]} 80. Kd3 {[%clk 0:00:21.1]} 80... Ke5 {[%clk 0:00:24.1]}
81. Ke3 {[%clk 0:00:22.6]} 81... Kd5 {[%clk 0:00:25.8]} 82. Kd3 {[%clk
0:00:24.1]} 82... Ke5 {[%clk 0:00:27.3]} 83. Ke3 {[%clk 0:00:25.6]} 83... Kd5
{[%clk 0:00:28.9]} 1/2-1/2

[Event "*** Titled Tuesday Blitz"]
[Site "Chess.com"]
[Date "2018.12.04"]
[Round "2"]
[White "jefferyx"]
[Black "mikhaillushenkov"]
[Result "1/2-1/2"]
[WhiteElo "2770"]
[BlackElo "2649"]
[TimeControl "180+2"]
[EndTime "13:25:32 PST"]
[Termination "Game drawn by stalemate"]

1. d4 {[%clk 0:03:01.9]} 1... Nf6 {[%clk 0:03:00.5]} 2. c4 {[%clk 0:03:02.8]}
2... e6 {[%clk 0:03:01.5]} 3. Nf3 {[%clk 0:03:03.1]} 3... Bb4+ {[%clk
0:03:01.1]} 4. Bd2 {[%clk 0:03:04.1]} 4... c5 {[%clk 0:03:01.9]} 5. Bxb4 {[%clk
0:03:04.2]} 5... cxb4 {[%clk 0:03:03.8]} 6. g3 {[%clk 0:03:05.9]} 6... b6 {[%clk
0:03:04.4]} 7. Bg2 {[%clk 0:03:07]} 7... Bb7 {[%clk 0:03:03.1]} 8. a3 {[%clk
0:03:08.6]} 8... bxa3 {[%clk 0:03:02.2]} 9. Nxa3 {[%clk 0:03:06.9]} 9... a5
{[%clk 0:03:00.2]} 10. O-O {[%clk 0:03:06]} 10... d6 {[%clk 0:02:51.8]} 11. Qb3
{[%clk 0:02:59.7]} 11... Na6 {[%clk 0:02:37.8]} 12. Rfd1 {[%clk 0:02:55.7]}
12... O-O {[%clk 0:02:38.3]} 13. Ne1 {[%clk 0:02:22.7]} 13... Bxg2 {[%clk
0:02:38]} 14. Kxg2 {[%clk 0:02:22.1]} 14... Rb8 {[%clk 0:02:28.8]} 15. Nd3
{[%clk 0:02:22.9]} 15... Qd7 {[%clk 0:02:23.2]} 16. Kg1 {[%clk 0:02:21.3]} 16...
h6 {[%clk 0:02:23.5]} 17. Rac1 {[%clk 0:02:21.9]} 17... Rfc8 {[%clk 0:02:24]}
18. Qb5 {[%clk 0:02:17.3]} 18... Qb7 {[%clk 0:02:17.9]} 19. Qa4 {[%clk
0:02:06.2]} 19... Ne4 {[%clk 0:02:13.6]} 20. f3 {[%clk 0:02:07.3]} 20... Nf6
{[%clk 0:02:12.5]} 21. Nb5 {[%clk 0:02:08.3]} 21... Ne8 {[%clk 0:02:09.7]} 22.
b4 {[%clk 0:02:09.1]} 22... Nxb4 {[%clk 0:02:08.6]} 23. Nxb4 {[%clk 0:02:11]}
23... axb4 {[%clk 0:02:10.5]} 24. Qxb4 {[%clk 0:02:12.2]} 24... Qd7 {[%clk
0:02:05.1]} 25. Ra1 {[%clk 0:02:07.9]} 25... Ra8 {[%clk 0:02:05.7]} 26. Rxa8
{[%clk 0:01:54.9]} 26... Rxa8 {[%clk 0:02:07.6]} 27. Nc3 {[%clk 0:01:56.7]}
27... Qc6 {[%clk 0:01:58.3]} 28. d5 {[%clk 0:01:57.9]} 28... Qc5+ {[%clk
0:01:57.3]} 29. Qxc5 {[%clk 0:01:58.7]} 29... bxc5 {[%clk 0:01:58.1]} 30. dxe6
{[%clk 0:02:00]} 30... fxe6 {[%clk 0:02:00]} 31. Ne4 {[%clk 0:02:01.5]} 31...
Ra6 {[%clk 0:02:00.8]} 32. Rb1 {[%clk 0:02:02.5]} 32... Nf6 {[%clk 0:01:58.9]}
33. Nc3 {[%clk 0:01:58.1]} 33... d5 {[%clk 0:01:56.9]} 34. Rb8+ {[%clk 0:01:59]}
34... Kf7 {[%clk 0:01:57.5]} 35. Rc8 {[%clk 0:02:00.9]} 35... Ra5 {[%clk
0:01:49.1]} 36. Nb5 {[%clk 0:01:52.6]} 36... dxc4 {[%clk 0:01:36]} 37. Nd6+
{[%clk 0:01:53.5]} 37... Ke7 {[%clk 0:01:37.1]} 38. Nxc4 {[%clk 0:01:55.4]}
38... Kd7 {[%clk 0:01:30.5]} 39. Rf8 {[%clk 0:01:47.8]} 39... Ra2 {[%clk
0:01:31.6]} 40. Kf2 {[%clk 0:01:46.9]} 40... Kc6 {[%clk 0:01:30.8]} 41. Rc8+
{[%clk 0:01:44.7]} 41... Kd5 {[%clk 0:01:29.6]} 42. Ne3+ {[%clk 0:01:41.1]}
42... Kd4 {[%clk 0:01:30.5]} 43. Rd8+ {[%clk 0:01:39.8]} 43... Kc3 {[%clk
0:01:31.5]} 44. Rd6 {[%clk 0:01:40.6]} 44... Nd5 {[%clk 0:01:28.5]} 45. Rxe6
{[%clk 0:01:32.8]} 45... Nxe3 {[%clk 0:01:29.4]} 46. Kxe3 {[%clk 0:01:34.7]}
46... c4 {[%clk 0:01:30.3]} 47. Re7 {[%clk 0:01:31.8]} 47... g5 {[%clk
0:01:30.8]} 48. f4 {[%clk 0:01:30.9]} 48... gxf4+ {[%clk 0:01:30.8]} 49. gxf4
{[%clk 0:01:32.8]} 49... Ra1 {[%clk 0:01:30.6]} 50. Kf2 {[%clk 0:01:14.9]} 50...
Kb2 {[%clk 0:01:25.4]} 51. Rb7+ {[%clk 0:01:14]} 51... Kc2 {[%clk 0:01:26.7]}
52. f5 {[%clk 0:01:11.8]} 52... Ra5 {[%clk 0:01:24.5]} 53. e4 {[%clk 0:01:08.8]}
53... c3 {[%clk 0:01:22]} 54. Ke3 {[%clk 0:01:07.9]} 54... Kd1 {[%clk
0:01:16.5]} 55. Rd7+ {[%clk 0:01:08.8]} 55... Ke1 {[%clk 0:01:17.1]} 56. Rc7
{[%clk 0:01:09.9]} 56... Ra3 {[%clk 0:01:18.2]} 57. f6 {[%clk 0:01:10.8]} 57...
c2+ {[%clk 0:01:19.2]} 58. Kf4 {[%clk 0:01:11.9]} 58... Kd2 {[%clk 0:01:20.5]}
59. f7 {[%clk 0:00:52.4]} 59... Rc3 {[%clk 0:01:12.6]} 60. Rxc3 {[%clk
0:00:37.6]} 60... Kxc3 {[%clk 0:01:14.5]} 61. f8=Q {[%clk 0:00:39]} 61... c1=Q+
{[%clk 0:01:16.1]} 62. Ke5 {[%clk 0:00:38.1]} 62... Qg5+ {[%clk 0:01:12]} 63.
Ke6 {[%clk 0:00:26.6]} 63... Kd4 {[%clk 0:01:07.3]} 64. Qf5 {[%clk 0:00:27.2]}
64... Qg8+ {[%clk 0:01:07.2]} 65. Kf6 {[%clk 0:00:28.7]} 65... Qf8+ {[%clk
0:00:58.6]} 66. Kg6 {[%clk 0:00:30]} 66... Qg8+ {[%clk 0:00:59.4]} 67. Kh5
{[%clk 0:00:27.6]} 67... Qg2 {[%clk 0:00:55.2]} 68. h4 {[%clk 0:00:21.1]} 68...
Qxe4 {[%clk 0:00:49.2]} 69. Qd7+ {[%clk 0:00:07.3]} 69... Ke5 {[%clk 0:00:46.4]}
70. Qg7+ {[%clk 0:00:07.7]} 70... Kd6 {[%clk 0:00:34.4]} 71. Qxh6+ {[%clk
0:00:08.3]} 71... Ke7 {[%clk 0:00:35.2]} 72. Qg7+ {[%clk 0:00:09.3]} 72... Kd8
{[%clk 0:00:32.8]} 73. Qf6+ {[%clk 0:00:07.8]} 73... Ke8 {[%clk 0:00:31.2]} 74.
Kh6 {[%clk 0:00:07.7]} 74... Qe3+ {[%clk 0:00:31.6]} 75. Kh7 {[%clk 0:00:08.4]}
75... Qe4+ {[%clk 0:00:30.1]} 76. Kh8 {[%clk 0:00:09.7]} 76... Qg4 {[%clk
0:00:28.5]} 77. Qg5 {[%clk 0:00:04.2]} 77... Qd4+ {[%clk 0:00:28]} 78. Kh7
{[%clk 0:00:05.6]} 78... Qe4+ {[%clk 0:00:27.8]} 79. Kh6 {[%clk 0:00:06.3]}
79... Qe6+ {[%clk 0:00:27.3]} 80. Kg7 {[%clk 0:00:07.1]} 80... Qf7+ {[%clk
0:00:27.7]} 81. Kh6 {[%clk 0:00:08]} 81... Qe6+ {[%clk 0:00:28.5]} 82. Qg6+
{[%clk 0:00:09.4]} 82... Qxg6+ {[%clk 0:00:29]} 83. Kxg6 {[%clk 0:00:11.3]}
83... Kf8 {[%clk 0:00:30.7]} 84. h5 {[%clk 0:00:13.2]} 84... Kg8 {[%clk
0:00:32.1]} 85. h6 {[%clk 0:00:15.1]} 85... Kh8 {[%clk 0:00:33.6]} 86. h7 {[%clk
0:00:17]} 1/2-1/2